Workbook

Sheet Set23
A1: TABELA DE REMUNERAÇÃO DOS SERVIÇOS AUXILIARES DO TRIBUNAL DE CONTAS DO DISTRITO FEDERAL
A2: Vigência: 1º de setembro de 2023 (em Reais) | G2: Vigência: 1º de setembro de 2023 (em Reais)
A3: AUDITOR DE CONTROLE EXTERNO e | G3: TÉCNICO DE CONTROLE EXTERNO e
A4: ANALISTA DE ADMINISTRAÇÃO PÚBLICA | G4: TÉCNICO DE ADMINISTRAÇÃO PÚBLICA
A5: Classe | B5: Padrão | C5: Vencimento | D5: GACE | E5: Remuneração | G5: Classe | H5: Padrão | I5: Vencimento | J5: GACE | K5: Remuneração
A6: A | B6: I | C6: 19587.14687 | D6: =C6*0.03 -> 587.6144061 | E6: =C6+D6 -> 20174.76128 | H6: 21 | I6: 11488.48143 | J6: =I6*0.03 -> 344.6544428 | K6: =I6+J6 -> 11833.13587
B7: II | C7: 19978.88448 | D7: =C7*0.03 -> 599.3665345 | E7: =C7+D7 -> 20578.25102 | H7: 22 | I7: 11775.68711 | J7: =I7*0.03 -> 353.2706133 | K7: =I7+J7 -> 12128.95772
B8: III | C8: 20378.4629 | D8: 611.353887 | E8: 20989.81679 | G8: A | H8: 23 | I8: 12070.08019 | J8: 362.1024058 | K8: 12432.1826
B9: IV | C9: 20786.03942 | D9: 623.5811825 | E9: 21409.6206 | H9: 24 | I9: 12371.84218 | J9: 371.1552655 | K9: 12742.99745
B10: V | C10: 21201.74714 | D10: 636.0524142 | E10: 21837.79955 | H10: 25 | I10: 12681.16667 | J10: 380.4350001 | K10: 13061.60167
B11: VI | C11: 21625.79176 | D11: 648.7737528 | E11: 22274.56551 | H11: 26 | I11: 12998.22306 | J11: 389.9466919 | K11: 13388.16976
B12: I | C12: 22247.83206 | D12: =C12*0.03 -> 667.4349617 | E12: =C12+D12 -> 22915.26702 | G12: B | H12: 27 | I12: 13323.15656 | J12: 399.6946967 | K12: 13722.85125
B13: II | C13: 22804.03031 | D13: =C13*0.03 -> 684.1209094 | E13: =C13+D13 -> 23488.15122 | H13: 28 | I13: 13856.03223 | J13: 415.6809669 | K13: 14271.7132
B14: III | C14: 23374.11945 | D14: 701.2235836 | E14: 24075.34304 | H14: 29 | I14: 14202.41541 | J14: 426.0724624 | K14: 14628.48787
A15: B | B15: IV | C15: 24309.11274 | D15: 729.2733821 | E15: 25038.38612 | H15: 30 | I15: 14557.49915 | J15: 436.7249744 | K15: 14994.22412
B16: V | C16: 24916.82463 | D16: 747.5047389 | E16: 25664.32937 | H16: 31 | I16: 14921.44747 | J16: 447.6434242 | K16: 15369.0909
B17: VI | C17: 25539.75085 | D17: 766.1925256 | E17: 26305.94338 | H17: 32 | I17: 15294.46493 | J17: 458.8339478 | K17: 15753.29888
B18: I | C18: 26178.25352 | D18: 785.3476056 | E18: 26963.60112 | G18: C | H18: 33 | I18: 15676.81502 | J18: 470.3044506 | K18: 16147.11947
B19: II | C19: 26832.70096 | D19: 804.9810289 | E19: 27637.68199 | H19: 34 | I19: 16303.94402 | J19: 489.1183206 | K19: 16793.06234
A20: C | B20: III | C20: 27503.52351 | D20: 825.1057053 | E20: 28328.62921 | H20: 35 | I20: 16711.52054 | J20: 501.3456162 | K20: 17212.86615
B21: IV | C21: 28191.10846 | D21: 845.7332539 | E21: 29036.84172 | H21: 36 | I21: 17129.31793 | J21: 513.8795379 | K21: 17643.19747
B22: V | C22: 28895.91034 | D22: 866.8773103 | E22: 29762.78765 | H22: 37 | I22: 17557.56044 | J22: 526.7268131 | K22: 18084.28725
B23: VI | C23: 29618.28035 | D23: 888.5484105 | E23: 30506.82876 | H23: 38 | I23: 17996.46831 | J23: 539.8940493 | K23: 18536.36236
A24: Especial | B24: I | C24: 30803.02631 | D24: 924.0907893 | E24: 31727.1171 | G24: Especial | H24: 39 | I24: 18446.41084 | J24: 553.3923253 | K24: 18999.80317
B25: II | C25: 31573.07629 | D25: 947.1922886 | E25: 32520.26857 | H25: 40 | I25: 18907.55017 | J25: 567.2265052 | K25: 19474.77668
B26: III | C26: 32362.41681 | D26: 970.8725044 | E26: 33333.28932 | H26: 41 | I26: 19380.23893 | J26: 581.4071678 | K26: 19961.6461
B27: IV | C27: 33171.47763 | D27: 995.144329 | E27: 34166.62196 | H27: 42 | I27: 19864.73305 | J27: 595.9419915 | K27: 20460.67504
B28: V | C28: 34000.74364 | D28: 1020.022309 | E28: 35020.76595 | H28: 43 | I28: 20659.32232 | J28: 619.7796696 | K28: 21279.10199
B29: VI | C29: 34850.77288 | D29: 1045.523186 | E29: 35896.29607 | H29: 44 | I29: 21175.80473 | J29: 635.2741419 | K29: 21811.07887
A31: Auxiliar de Administração Pública
A32: (Em extinção) | G32: Cargos de Natureza Especial. Cargos em Comissão.
A33: Classe | B33: Padrão | C33: Vencimento* | D33: GACE | E33: Remuneração | G33: NÍVEL | H33: Vencimento | J33: Representação
A34: A | B34: 8 | C34: 8095.298014 | D34: =C34*0.03 -> 242.8589404 | E34: =C34+D34 -> 8338.156954 | H34: Básico | J34: Mensal
B35: 9 | C35: 8297.727959 | D35: =C35*0.03 -> 248.9318388 | E35: =C35+D35 -> 8546.659798 | G35: CNE 2 | H35: 6906.783035 | J35: 18761.04838
B36: 10 | C36: 8505.148168 | D36: 255.154445 | E36: 8760.302613 | G36: CNE 1 | H36: 6210.980803 | J36: 16870.97699
B37: 11 | C37: 8717.786324 | D37: 261.5335897 | E37: 8979.319914
B38: 12 | C38: 8935.702245 | D38: 268.0710673 | E38: 9203.773312 | G38: CC-6 | H38: 4354.379861 | J38: 12247.44101
B39: 13 | C39: 9293.107799 | D39: 278.793234 | E39: 9571.901032 | G39: CC-5 | H39: 3927.915237 | J39: 11013.75435
A40: B | B40: 14 | C40: 9525.478449 | D40: 285.7643535 | E40: 9811.242802 | G40: CC-4 | H40: 2968.600339 | J40: 9134.117098
B41: 15 | C41: 9763.617457 | D41: 292.9085237 | E41: 10056.52598 | G41: CC-3 | H41: 2678.2783 | J41: 8214.179895
B42: 16 | C42: 10007.71869 | D42: 300.2315608 | E42: 10307.95025 | G42: CC-2 | H42: 2128.837711 | J42: 6694.072194
B43: 17 | C43: 10257.90817 | D43: 307.737245 | E43: 10565.64541 | G43: CC-1 | H43: 1645.864499 | J43: 5161.95472
B44: 18 | C44: 10514.34843 | D44: 315.4304528 | E44: 10829.77888
B45: 19 | C45: 10934.91905 | D45: 328.0475714 | E45: 11262.96662 | G45: Funções de Confiança
A46: Especial | B46: 20 | C46: 11208.28372 | D46: 336.2485116 | E46: 11544.53223
B47: 21 | C47: 11488.48143 | D47: 344.6544428 | E47: 11833.13587 | G47: FC-3 | H47: 4891.220716
B48: 22 | C48: 11775.68348 | D48: 353.2705044 | E48: 12128.95398 | G48: FC-2 | H48: 3565.592732
B49: 23 | C49: 12070.08019 | D49: 362.1024058 | E49: 12432.1826 | G49: FC-1 | H49: 2599.383253
B50: 24 | C50: 12371.84481 | D50: 371.1553444 | E50: 12743.00016
B51: 25 | C51: 12681.16481 | D51: 380.4349443 | E51: 13061.59975
